Cogmind - Beta 16 @@@ ROGUE MODE // 2025.10.22 @ 00:00:22 Player: LED Result: Destroyed by G-47 Trooper with Particle Gun Performance ------------- Evolutions (0) 0 Regions Visited (1) 200 Robots Destroyed (14) 70 Value Destroyed (218) 218 Prototype IDs (0) 0 Alien Tech Used (0) 0 Bonus (0) 0 TOTAL SCORE: 488 Bonus ------- None Cogmind --------- Core Integrity 0/250 Matter 290/300 Energy 81/100 System Corruption 0% Temperature Cool (56) Movement Treading (160) Location -10/Materials Parts ------- > --- POWER (1) -------- (None) > --- PROPULSION (2) --- Light Treads Light Treads > --- UTILITY (2) ------ Small Storage Unit Signal Interpreter > --- WEAPON (2) ------- Small Laser > --- INVENTORY (8) ---- Wheel High-capacity Battery (250) Seismic Detector Targeting Computer Small Laser Light Assault Rifle Mining Laser Peak State ------------ > --- POWER ------------ Light Ion Engine > --- PROPULSION ------- Wheel Wheel > --- UTILITY ---------- Small Storage Unit Seismic Detector > --- WEAPON ----------- Light Assault Rifle Light Assault Rifle > --- INVENTORY -------- Light Ion Engine Light Treads Wheel Mining Laser [Rating: 7] Favorites ----------- Power Light Ion Engine Engine Light Ion Engine Propulsion Wheel Treads Light Treads Wheel Wheel Utility Small Storage Unit Device Seismic Detector Storage Small Storage Unit Processor Signal Interpreter Weapon Light Assault Rifle Energy Gun Small Laser Ballistic Gun Light Assault Rifle Build | -11 -10 ------- Run | Yrd Mat Slots Evolved . | . . Power . | . . Propulsion . | . . Utility . | . . Weapon . | . . Parts Attached 17 | 7 10 Power 3 | 1 2 Engine 3 | 1 2 Core . | . . Reactor . | . . Propulsion 7 | 2 5 Treads 2 | . 2 Leg . | . . Wheel 5 | 2 3 Hover . | . . Flight . | . . Utility 3 | 2 1 Device 1 | 1 . Storage 1 | 1 . Processor 1 | . 1 Hackware . | . . Protection . | . . Artifact . | . . Weapon 4 | 2 2 Energy Gun 1 | . 1 Energy Cannon . | . . Ballistic Gun 3 | 2 1 Ballistic Cannon . | . . Launcher . | . . Special Weapon . | . . Impact Weapon . | . . Slashing Weapon . | . . Piercing Weapon . | . . Special Melee Weapon . | . . Unidentified Prototypes . | . . Parts Lost 8 | . 8 Power 2 | . 2 Propulsion 4 | . 4 Utility . | . . Weapon 2 | . 2 Highest Loss Streak 5 | . 5 To Critical Strikes . | . . Average Backups 5 | 2 6 Power . | . . Propulsion 2 | 1 2 Utility 1 | . 1 Weapon 1 | . 1 Tool/Special . | . . Unused Backups 5 | . 5 Power . | . . Propulsion . | . . Utility 2 | . 2 Weapon 3 | . 3 Tool/Special . | . . Average Slot Usage (%) 95 | . 95 Engine 13 | . 13 Treads 4 | . 4 Wheel 23 | . 23 Device 6 | . 6 Storage 14 | . 14 Processor 7 | . 7 Energy Gun 3 | . 3 Ballistic Gun 21 | . 21 Peak Build Rating 7 | 7 7 Average Rating 6 | 5 6 On Entrance 3 | . 7 Avg Prop Armor Cover (%) 15 | . 15 Naked Turns . | . . Heaviest Build 11 | 11 11 Greatest Support 20 | 20 20 Greatest Overweight (x) 1 | 1 . Average Overweight (x) . | . . Largest Inventory Capacity 8 | 8 8 Average Capacity 7 | 7 8 Most Carried 8 | 5 8 Average Carried 5 | 2 6 Final Capacity 8 | 8 8 Final Carried 7 | 5 7 Class Distribution -------------------- 100% | Mutant Dominant Class ---------------- Mutant | -10/Materials Resources | -11 -10 ----------- Run | Yrd Mat Matter Collected 438 | 288 150 Remotely . | . . Salvage Created 423 | 113 310 Parts 33 | 7 26 Haulers Intercepted 1 | . 1 Recyclers Shooed . | . . Parts Field Recycled . | . . Retrieved Matter . | . . Parts Self-Destructed . | . . Prevented . | . . Parts Restored . | . . Kills | -11 -10 ------- Run | Yrd Mat Combat Hostiles Destroyed 10 | . 10 Guns 10 | . 10 Classes Destroyed 5 | 2 3 Tunneler 2 | 2 . Hauler 1 | . 1 Recycler 1 | 1 . Swarmer 6 | . 6 Grunt 4 | . 4 Best Kill Streak 7 | 1 7 Combat Bots Only 6 | . 6 Max Kills in Single Turn 1 | 1 1 Gunslinging . | . . Exploded . | . . Melee . | . . Uniques/NPCs Destroyed . | . . Combat | -11 -10 -------- Run | Yrd Mat Hostile Shots Fired 147 | . 147 Missed 36 | . 36 Hits 111 | . 111 Projectile 111 | . 111 Critical Strikes 2 | . 2 Damage Taken 1107 | . 1107 Core 250 | . 250 Absorbed by Shields . | . . Core Remaining (%) 100 | 100 . Volleys Fired 67 | 9 58 Largest 2 | 2 2 Hottest 60 | 40 60 Shots Fired 109 | 18 91 Gun 109 | 18 91 Cannon . | . . Launcher . | . . Special . | . . Kinetic 88 | 18 70 Thermal 21 | . 21 Explosive . | . . Electromagnetic . | . . Robot Hit Streak 8 | 4 8 Robot Miss Streak 5 | 2 5 Penetration Max . | . . Secondary Targets 2 | . 2 Max Gunslinging Chain 1 | . 1 Shots Hit Robots 70 | 12 58 Core Hits 29 | 6 23 Critical Kills . | . . Critical Parts Destroyed . | . . Critical Strikes . | . . Melee Attacks . | . . Impact . | . . Slashing . | . . Piercing . | . . Sneak Attacks . | . . Combat Hostiles . | . . Follow-up Attacks . | . . Damage Inflicted 632 | 93 539 Guns 632 | 93 539 Cannons . | . . Explosions . | . . Melee . | . . Ramming . | . . Kinetic 437 | 93 344 Thermal 195 | . 195 Explosive . | . . Electromagnetic . | . . Impact . | . . Slashing . | . . Piercing . | . . Highest Corruption . | . . Average Corruption . | . . Corruption Purged . | . . Corruption Blocked . | . . Overload Shots . | . . Overflow Damage . | . . Projectiles . | . . Explosions . | . . Melee . | . . Knockbacks . | . . Impact . | . . Kinetic . | . . Secondary . | . . Self-Inflicted Damage . | . . Shots . | . . Rammed . | . . Targets Rammed . | . . Kicked . | . . Crushed . | . . Highest Temperature 74 | . 74 Average Temperature 31 | . 31 Received Heat Transfer 339 | . 339 Siege Activations . | . . Martial Activations . | . . Shielding Activations . | . . Robots Disrupted . | . . Combat Hostiles . | . . Robots Corrupted . | . . Combat Hostiles . | . . Parts Fried . | . . Impact Corruptions . | . . Robots Melted . | . . Combat Hostiles . | . . Parts Melted . | . . Heat Transferred 450 | . 450 Parts Sabotaged . | . . Parts Stolen . | . . Parts Stripped . | . . Power Chain Reactions . | . . Alert | -11 -10 ------- Run | Yrd Mat Maximum Alert Level . | . . Low Security (%) 100 | 100 100 Level 1 . | . . Level 2 . | . . Level 3 . | . . Level 4 . | . . Level 5 . | . . High Security . | . . Max Security . | . . Peak Influence 102 | 5 102 Initial . | . . Average 37 | 1 46 Influence Increases 339 | 15 324 Destroy 0b10 Robot/C 200 | . 200 Destroy 0b10 Robot/NC 20 | 15 5 Destroy Leader 42 | . 42 Successful Hack 32 | . 32 Lose Combat Pursuer 45 | . 45 Influence Decreases 276 | 15 261 Time Decay 196 | 15 181 Lost Part 80 | . 80 Squads Dispatched 3 | . 3 Investigation 2 | . 2 Extermination . | . . Reinforcement 1 | . 1 Assault . | . . Garrison . | . . Intercept . | . . Searches Triggered . | . . Construction Impeded . | . . Haulers Reinforced . | . . Active Scanning Responses . | . . Cargo Convoy Interrupts . | . . Stealth | -11 -10 --------- Run | Yrd Mat Distress Signals 1 | . 1 Communications Jammed . | . . Distress Signals . | . . Times Spotted 17 | . 17 Peak Tracking Total 6 | . 6 Tactical Retreats 2 | . 2 Traps | -11 -10 ------- Run | Yrd Mat Traps Triggered . | . . Indirectly . | . . Trap Hack Attempts . | . . Triggered . | . . Disarmed 6 | . 6 Reprogrammed . | . . Reused . | . . Traps Extracted . | . . Installed . | . . Triggered . | . . Machines | -11 -10 ---------- Run | Yrd Mat Machines Disabled . | . . Max in Single Turn . | . . Machines Repaired . | . . Machines Dismantled . | . . Machines Sabotaged . | . . Overloaded Fab Kills . | . . Hacking | -11 -10 --------- Run | Yrd Mat Machines Accessed 6 | . 6 Terminals 5 | . 5 Fabricators . | . . Repair Stations . | . . Recycling Units 1 | . 1 Scanalyzers . | . . Garrison Access . | . . Total Hacks 26 | . 26 Successful 15 | . 15 Failed 10 | . 10 Catastrophic . | . . Database Lockouts 1 | . 1 Manual 16 | . 16 Terminals 25 | . 25 Fabricators . | . . Repair Stations . | . . Recycling Units 1 | . 1 Scanalyzers . | . . Garrison Access . | . . Terminal Hacks 5 | . 5 Robot Analysis 1 | . 1 Terminal Index 1 | . 1 Scanalyzer Index 1 | . 1 Disarm Traps 1 | . 1 Registered Components 1 | . 1 Fabricator Hacks . | . . Repair Station Hacks . | . . Recycling Unit Hacks 1 | . 1 Retrieve Components 1 | . 1 Scanalyzer . | . . Garrison Access Hacks . | . . Unauthorized Hacks 9 | . 9 Terminals 9 | . 9 Botnet 4 | . 4 Skim 5 | . 5 Fabricators . | . . Repair Stations . | . . Recycling Units . | . . Scanalyzers . | . . Garrison Access . | . . Data Cores Recovered . | . . Used . | . . Hacking Detections 4 | . 4 Full Trace Events 2 | . 2 Feedback Events . | . . Feedback Blocked . | . . Robot Schematics Acquired . | . . Robots Built . | . . Authchips . | . . Time . | . . Total Robot Build Rating . | . . Part Schematics Acquired . | . . Parts Built . | . . Authchips . | . . Time . | . . Total Part Build Rating . | . . Part Studies Acquired . | . . Parts Repaired . | . . Time . | . . Parts Recycled . | . . Recycled Matter . | . . Retrieved Matter . | . . Retrieved Components . | . . Parts Scanalyzed . | . . Part Schematics Acquired . | . . Parts Damaged . | . . Bothacking | -11 -10 ------------ Run | Yrd Mat Used RIF Installer . | . . Robots Hacked . | . . Non-combat . | . . Combat . | . . Robot Hacks Applied . | . . Relay Couplers Released . | . . Fabnet Peak Effective % . | . . Robots Rewired . | . . Allies Hacked . | . . Hacks Repelled . | . . Allies | -11 -10 -------- Run | Yrd Mat Total Allies . | . . Largest Group . | . . Highest-Rated Group . | . . Highest-Rated Ally . | . . Total Orders . | . . Ally Attacks . | . . Total Damage . | . . Kills . | . . Allies Corrupted . | . . Allies Melted . | . . Intel | -11 -10 ------- Run | Yrd Mat Active Infowar (turns) 198 | 18 180 Seismic 198 | 18 180 Robot Analysis Total 1 | . 1 Derelict Logs Recovered . | . . Drone Launches . | . . Drone Recoveries . | . . Exploration | -11 -10 ------------- Run | Yrd Mat Turns Passed 542 | 113 429 Spaces Moved 414 | 89 325 Core 8 | 8 . Treads 2 | . 2 Legs . | . . Wheels 404 | 81 323 Hover . | . . Flight . | . . Fastest Speed 50 | 50 80 Average Speed 80 | 79 80 Slowest Speed 160 | 100 160 Overloaded Moves . | . . Propulsion Burnouts . | . . Robots Hopped . | . . Potential Cave-ins . | . . Cave-ins Triggered . | . . Exploration Rate (%) 29 | 5 53 Regions Visited 1 Branch Regions . Pre-discovered Areas . | . . Known Exits Taken . | . . Unknown Exits Taken 1 | 1 . Scrap Searched . | . . Spaces Dug . | . . Terrain Destroyed . | . . Melee . | . . Projectile . | . . AOE . | . . Terrain Rammed . | . . Walls Destroyed . | . . Machines Disabled . | . . Actions | -11 -10 --------- Run | Yrd Mat Total 528 | 113 415 Wait 16 | 4 12 Move 413 | 88 325 Hop . | . . Pick Up 9 | 5 4 Fast Attach 10 | 7 3 Attach 5 | . 5 Detach 2 | . 2 Swap 4 | . 4 Drop 2 | . 2 Fire 67 | 9 58 Melee . | . . Ram . | . . Kick . | . . Crush . | . . Escape Stasis . | . . Rewire . | . . Trap . | . . Miscellaneous . | . . Route ------- -11/Scrapyard -10/Materials (discovered 1 exit: *Min) History --------- Turn | Location | Event 14 | -11/Scrapyard | Discovered new exit (range 16) 114 | -11/Scrapyard | Entered Materials 258 | -10/Materials | Discovered new exit (range 12) 305 | -10/Materials | Central database locked down 315 | -10/Materials | Identified exit to Mines 323 | -10/Materials | Build established: Mutant 410 | -10/Materials | Core integrity fell below 50% 454 | -10/Materials | Lost 5 parts (1p2n2w) 531 | -10/Materials | Core integrity fell below 20% 543 | -10/Materials | Destroyed by G-47 Trooper with Particle Gun Last Messages --------------- 00448_ K-01 Serf collects debris. 00461_ A-02 Transporter destroyed. 00467_ Acquired 30 matter. 00468_ K-01 Serf collects debris. 00471_ R-06 Scavenger collects Ion Engine. 00472_ K-01 Serf collects debris. 00483_ Acquired Sml. Laser. 00501_ Connecting with Terminal... >>Trojan(Skim) Trojan loaded successfully. Testing... Terminal linked with 2 systems. Please expand to 2 more systems! 00501_ ALERT: Suspicious activity at Terminal M007. Dispatching Investigation squad. 00524_ Lgt. Ion Engine destroyed. 00525_ Critical hit (Burn: +37). 00530_ G-34 Mercenary destroyed. 00537_ Wheel destroyed. 00539_ K-01 Serf destroyed. Map ----- +----------------------------------------------------+ | ???????????????????????????????# + | | ???????????????????????????????# # [[ ! | | ????????????????????????????########## [[! | | ????????????????????????????# # ! | | ????????????????????????????# # | | ????????????????????????????# + | | ????????????????????????????# # | | ????????????????????????????# # !! | | ????????????????????????????# ?## ######### | | ????????????????????????????#! ??# #???????? | | ????????????????????????????######???# +???????? | | ????????????????????????????########## #???????? | | ????????????????????????????# # #???????? | | ????????????????????????????# T # #???????? | | ????????????????????????????# # #???????? | | ????????????????????????????# # #???????? | | ????????????????????????????# + #???????? | | ????????????????????????????# """ # #???????? | | ???????????###??????????????# """ # ##+#????? | | ???????????? ?????????##### """ # #????? | | ????????????? ????????#]]!# + ###### | | ?????????????? ?#?????#]|!############ | | ??????????????? # ????#]|!#?# ## | | ???????????????? # ??### #?#""" * ## = | | ????????????????? / ??[+% !#?#"""=![%## =[=#### | | ??????????????????# ???#@= #?#"""%= !## ! %=## T | | ??????????????????# ??#=%*#?# !*%==*+ [=## | | ??????????????????# ####g#######+#### ## | | ??????????????????# g % ## ## | | ??????????????????# a ## | | ??????????????????# ###### #### | | ??????????????????########+## #????# | | ?????????????????????# # #????# | | ?????????????????????# """ # #????# | | ?????????????????????# """ # #?######### | | ?????????????????????# """ # ## # | | ?????????????????????# """ # ####### """ # | | ?????????????????????# # #?????# """ # | | ?????????????????????##"T"### #?????# """ # | | ??????????????????????#"""#?# #?????# # | | ??????????????????????#####?#^ #?????#######+## | | ????????????????????????????# #?????????# | | ????????????????????????????# #?????????# | | ????????????????????????????? ??????????# | | ?????????????????????????????????????????##+#+###+ | | ?????????????????????????????????????????# | | ?????????????????????????????????????????# | | ?????????????????????????????????????????# """ | | ?????????????????????????????????????????#""""" | | ?????????????????????????????????????????#""""" | +----------------------------------------------------+ Best States ------------- Heat Dissipation 25 Energy Generation 10 Energy Capacity 125 Matter Stores 300 Matter Capacity 300 Sight Range 16 Terrain Scan Density 10 Evasion (%) 44 Recoil Reduction 2 Item Schematics ----------------- None Robot Schematics ------------------ None Fabricated ------------ Nothing Repaired ---------- Nothing Studied --------- None Alien Tech Used ----------------- None Achievements -------------- DATA ERROR: Steam Global Achievement% Organ Harvest There's More Where That Came From Challenges ------------ None Game ------ Seed ExoskeletonStormStorage Manual? 0 Play Time 00:08:06 Cumulative 53.2 hours Start 2025.10.21 @ 23:46:02 End 2025.10.22 @ 00:00:22 Sessions 1 Manual Loads 0 Difficulty Rogue Special Mode None Game No. 33 Rogue 33 Adventurer 0 Explorer 0 Win Type - Total 1 Types 1/0/0/0/0/0/0/0/0/0 Lore% 23 Gallery% 38 Achievement% 17 Wizard Run 0 Options --------- Layout 1 ASCII 0 Keyboard 1 Movement Vi Keybinds 0 Fullscreen 2 Font 24/Smallcaps Map View 50x35 Zoom Use 0% Tactical HUD 1 Map Filters NONE Filters NONE Steam 1 RUN: 2577c0a6-64e7-415f-aff8-942b8c332ae7